bitfinex/quotes_BTCUSD_20251104
["timestamp","ask_amount","ask_price","bid_price","bid_amount"]
[1762217404512,3.19858085,106820.0,106810.0,0.04948]
[1762217404970,3.19858085,106820.0,106810.0,0.02511]
[1762217405191,3.19858085,106820.0,106810.0,0.02811]
[1762217405595,3.74775731,106820.0,106810.0,0.005]
[1762217405805,4.10490076,106820.0,106810.0,0.004]
[1762217406031,4.12820902,106820.0,106810.0,0.004]
[1762217406699,4.10490076,106820.0,106810.0,0.001]
[1762217407124,4.10490076,106820.0,106810.0,0.002]
[1762217407346,4.10490076,106820.0,106810.0,0.001]
[1762217408399,3.18726591,106800.0,106790.0,0.001]
[1762217408622,4.13069713,106800.0,106790.0,0.00014436]
[1762217408881,4.07644237,106800.0,106790.0,0.00014436]
[1762217409469,4.07644237,106800.0,106790.0,0.00314436]
[1762217410117,4.07644237,106800.0,106790.0,0.00014436]
[1762217410769,4.07644237,106800.0,106790.0,0.00114436]
[1762217410983,4.07644237,106800.0,106790.0,0.00014436]
[1762217411454,4.17201843,106800.0,106790.0,0.00114436]
[1762217411870,4.17201843,106800.0,106790.0,0.00014436]
[1762217416794,4.17577213,106800.0,106790.0,0.00014436]
[1762217418579,4.17677213,106800.0,106790.0,0.00014436]
[1762217418778,4.17577213,106800.0,106790.0,0.00014436]
[1762217418994,4.17677213,106800.0,106790.0,0.00014436]
[1762217420042,4.17577213,106800.0,106790.0,0.00014436]
[1762217420245,4.19463648,106800.0,106790.0,0.00014436]
[1762217420422,3.68409002,106800.0,106790.0,0.00014436]
[1762217420627,4.33131813,106800.0,106790.0,0.00014436]
[1762217420861,4.34000813,106800.0,106790.0,0.00014436]
[1762217423033,3.58033961,106800.0,106790.0,0.00014436]
[1762217423241,3.96017387,106800.0,106790.0,0.00014436]
[1762217425769,4.34000813,106800.0,106790.0,0.00014436]
[1762217426037,4.45889245,106800.0,106790.0,0.00014436]
[1762217426246,4.43558419,106800.0,106790.0,0.00014436]
[1762217426703,4.45028144,106800.0,106790.0,0.00014436]
[1762217427122,4.35570538,106800.0,106790.0,0.00014436]
[1762217427512,4.40113143,106800.0,106790.0,0.00014436]
[1762217427951,4.40113143,106800.0,106790.0,4.36e-06]
[1762217428159,3.21159171,106790.0,106780.0,0.00023146]
[1762217428372,3.63606597,106790.0,106780.0,0.00023146]
[1762217430180,3.63982015,106790.0,106780.0,0.00123146]
[1762217430425,4.6935784,106790.0,106780.0,1e-08]
[1762217431175,4.59900234,106790.0,106780.0,1e-08]
[1762217431399,4.59900234,106790.0,106770.0,0.0004]
[1762217431400,0.18830099,106780.0,106770.0,0.0004]
[1762217431614,4.35351357,106780.0,106770.0,0.0004]
[1762217431855,4.71944996,106780.0,106770.0,0.00171962]
[1762217432084,4.81994285,106780.0,106770.0,0.00171962]
[1762217432321,4.80044776,106780.0,106770.0,0.00171962]
[1762217433365,1.19591032,106750.0,106740.0,0.0004]
[1762217433579,4.22027037,106750.0,106740.0,0.0004]
[1762217433783,4.24278037,106750.0,106740.0,0.0004]
[1762217433996,4.24278037,106750.0,106740.0,0.0010947]
[1762217434385,3.9542785,106750.0,106740.0,0.0010947]
[1762217434824,3.9542785,106750.0,106740.0,0.0020947]
[1762217435046,3.9542785,106750.0,106740.0,0.0030947]
[1762217435272,3.96373956,106750.0,106740.0,0.0030947]
[1762217435921,3.56117473,106750.0,106740.0,0.0150247]
[1762217436129,0.56117473,106750.0,106740.0,0.0150247]
[1762217436576,0.58368473,106750.0,106740.0,0.19046588]
[1762217437021,0.58368473,106750.0,106740.0,0.0030947]
[1762217437442,0.96373956,106750.0,106740.0,0.0030947]
[1762217437893,3.96373956,106750.0,106740.0,0.0030947]
[1762217441352,4.05831562,106750.0,106740.0,0.0030947]
[1762217441575,3.74162388,106750.0,106740.0,0.01183466]
[1762217441785,3.74262388,106750.0,106740.0,0.0030947]
[1762217442458,3.74262388,106750.0,106740.0,0.0020947]
[1762217442692,3.74362388,106750.0,106740.0,0.0020947]
[1762217443190,3.7583205,106750.0,106740.0,0.0010947]
[1762217443636,3.91096688,106750.0,106740.0,0.0010947]
[1762217443849,4.0983205,106750.0,106740.0,0.0010947]
[1762217445389,4.10094863,106750.0,106740.0,0.0010947]
[1762217446184,4.10094863,106750.0,106740.0,4.7e-06]
[1762217446402,3.52737118,106740.0,106730.0,0.0004]
[1762217446612,4.05348207,106740.0,106730.0,0.0004]
[1762217447284,4.05448207,106740.0,106730.0,0.0004]
[1762217447494,4.05348207,106740.0,106730.0,0.0004]
[1762217447631,4.05348207,106740.0,106730.0,0.0024]
[1762217447835,4.05448207,106740.0,106730.0,0.0024]
[1762217448253,4.05448207,106740.0,106730.0,0.0034]
[1762217448449,4.05348207,106740.0,106730.0,0.0024]
[1762217448656,4.05448207,106740.0,106730.0,0.0024]
[1762217448862,4.05448207,106740.0,106730.0,0.0004]
[1762217449227,4.05748207,106740.0,106730.0,0.0004]
[1762217449644,4.07217959,106740.0,106730.0,0.0004]
[1762217450065,4.07317959,106740.0,106730.0,0.0004]
[1762217450952,4.09284337,106740.0,106730.0,0.0004]
[1762217451156,0.52738873,106730.0,106720.0,0.0004]
[1762217451378,4.04590283,106730.0,106720.0,0.0004]
[1762217452197,4.04690283,106730.0,106720.0,0.0004]
[1762217453877,3.666848,106730.0,106720.0,0.0004]
[1762217454077,4.04690283,106730.0,106720.0,0.0004]
[1762217456382,4.33603068,106730.0,106720.0,0.0004]
[1762217456586,4.43060674,106730.0,106720.0,0.0004]
[1762217456793,4.76619808,106730.0,106720.0,0.0004]
[1762217456995,4.78586186,106730.0,106720.0,0.0004]
[1762217457461,4.45127052,106730.0,106720.0,0.0004]
[1762217457657,4.43160674,106730.0,106720.0,0.00086329]
[1762217457876,4.76619808,106730.0,106720.0,0.00086329]
[1762217458080,4.78586186,106730.0,106720.0,0.00086329]
[1762217458245,4.45127052,106730.0,106720.0,0.00086329]
[1762217459230,4.78586186,106730.0,106720.0,0.00086329]
[1762217460030,4.45127052,106730.0,106720.0,0.00086329]
[1762217460232,0.01529,106720.0,106700.0,0.05]
[1762217460449,4.6679754,106710.0,106700.0,0.05]
[1762217460684,4.67897539,106710.0,106700.0,1e-08]
[1762217460917,4.71982179,106710.0,106700.0,1e-08]
[1762217461132,4.36929405,106710.0,106700.0,1e-08]
[1762217461363,4.3359858,106710.0,106700.0,0.00100001]
[1762217461588,4.3359858,106710.0,106700.0,0.00148177]
[1762217462042,4.40453337,106710.0,106700.0,0.00048177]
[1762217462325,4.42962717,106710.0,106700.0,0.00148177]
[1762217462544,4.00539446,106710.0,106700.0,0.00048177]
[1762217462761,4.3399858,106710.0,106700.0,0.00048177]
[1762217462974,4.3419858,106710.0,106700.0,0.00048177]
[1762217465158,3.91783519,106710.0,106700.0,0.00048177]
[1762217466022,3.91783519,106710.0,106700.0,0.00094518]
[1762217466222,3.57783519,106710.0,106700.0,0.00094518]
[1762217466431,3.54304385,106710.0,106700.0,0.00094518]
[1762217466650,3.89292519,106710.0,106700.0,0.00094518]
[1762217466894,3.91783519,106710.0,106700.0,0.00094518]
[1762217467112,3.91283519,106710.0,106700.0,0.00094518]
[1762217467339,4.34200259,106710.0,106700.0,0.00094518]
[1762217467546,4.24742653,106710.0,106700.0,0.00094518]
[1762217468177,4.24542653,106710.0,106700.0,0.00094518]
[1762217470617,4.26873479,106710.0,106700.0,0.00094518]
[1762217470827,4.24642653,106710.0,106700.0,0.00094518]
[1762217471035,4.24542653,106710.0,106700.0,0.00094518]
[1762217471244,4.34000259,106710.0,106700.0,0.00094518]
[1762217479639,3.57624385,106710.0,106700.0,0.00094518]
[1762217479849,3.88592519,106710.0,106700.0,0.00094518]
[1762217480061,3.55133385,106710.0,106700.0,0.00094518]
[1762217480269,3.55133385,106710.0,106700.0,0.1883866]
[1762217480270,3.90894519,106710.0,106700.0,0.1883866]
[1762217480904,3.90894519,106710.0,106700.0,0.00094518]
[1762217481115,3.53604385,106710.0,106700.0,0.2008066]
[1762217481328,3.53604385,106710.0,106700.0,0.33097587]
[1762217481535,0.19604385,106710.0,106700.0,0.33197587]
[1762217481744,0.53604385,106710.0,106700.0,0.33197587]
[1762217481954,3.19602763,106720.0,106710.0,0.18742385]
[1762217482184,3.53061897,106720.0,106710.0,0.18742385]
[1762217482417,0.23569763,106720.0,106710.0,0.18742385]
[1762217482635,0.57569763,106720.0,106710.0,0.18742385]
[1762217482850,0.38829,106720.0,106710.0,0.18742385]
[1762217483066,0.343,106720.0,106710.0,0.24045385]
[1762217483278,0.003,106720.0,106710.0,0.24145385]
[1762217483512,0.343,106720.0,106710.0,0.74145385]
[1762217483745,0.341,106720.0,106710.0,0.74145385]
[1762217483972,0.341,106720.0,106710.0,0.77763613]
[1762217484190,0.341,106720.0,106710.0,0.59221228]
[1762217484412,0.52840629,106720.0,106710.0,0.59221228]
[1762217484859,0.52740629,106720.0,106710.0,0.77963613]
[1762217485141,0.18737737,106740.0,106720.0,0.22358423]
[1762217485365,0.01054988,106750.0,106740.0,0.18737118]
[1762217485595,0.01054988,106750.0,106740.0,0.24040118]
[1762217485814,0.00108882,106750.0,106740.0,0.27758346]
[1762217486672,0.00108882,106750.0,106740.0,0.27872782]
[1762217487299,0.00108882,106750.0,106740.0,0.28272782]
[1762217487993,3.0,106750.0,106740.0,0.28172782]
[1762217488211,3.0,106750.0,106740.0,0.09635664]
[1762217488212,0.18735362,106750.0,106740.0,0.09635664]
[1762217488425,0.52183613,106750.0,106740.0,0.09635664]
[1762217488638,3.56240613,106750.0,106740.0,0.00614436]
[1762217489118,3.90240613,106750.0,106740.0,0.00614436]
[1762217489558,3.90240613,106750.0,106740.0,0.00014436]
[1762217490014,3.90240613,106750.0,106740.0,0.00114436]
[1762217490438,4.0788191,106750.0,106740.0,0.00014436]
[1762217490655,4.0798191,106750.0,106740.0,0.00014436]
[1762217491319,4.0808191,106750.0,106740.0,0.00014436]
[1762217491552,4.02855595,106750.0,106740.0,0.00014436]
[1762217495940,4.03718595,106750.0,106740.0,0.00014436]
[1762217496164,4.13176201,106750.0,106740.0,0.00014436]
[1762217497012,4.03718595,106750.0,106740.0,0.00014436]
[1762217498465,4.03818595,106750.0,106740.0,0.00014436]
[1762217498674,4.03718595,106750.0,106740.0,0.00014436]
[1762217499920,4.03818595,106750.0,106740.0,0.00014436]
[1762217500336,4.03718595,106750.0,106740.0,0.00014436]
[1762217500599,4.03818595,106750.0,106740.0,0.00014436]
[1762217500813,4.03718595,106750.0,106740.0,0.00014436]
[1762217501039,4.13137223,106750.0,106740.0,0.00014436]
[1762217501273,3.47514314,106720.0,106710.0,0.50023168]
[1762217501474,3.29148685,106720.0,106710.0,0.50071344]
[1762217501681,0.19868213,106740.0,106720.0,0.18840629]
[1762217501909,0.01128,106740.0,106730.0,0.19656873]
[1762217502112,0.19865118,106740.0,106730.0,0.00918]
[1762217502317,0.21496118,106740.0,106730.0,0.00918]
[1762217502522,0.21496118,106740.0,106730.0,0.19656873]
[1762217502736,0.19865118,106740.0,106730.0,0.00918]
[1762217502955,0.21496118,106740.0,106730.0,0.00918]
[1762217503204,0.23922118,106740.0,106730.0,0.19656873]
[1762217503614,0.23922118,106740.0,106730.0,0.18738873]
[1762217503817,0.21696118,106740.0,106730.0,0.18738873]
[1762217504025,0.19865118,106740.0,106730.0,0.23710873]
[1762217504176,0.19865118,106740.0,106730.0,0.21455873]
[1762217504359,0.01128,106740.0,106730.0,0.21455873]
[1762217504563,0.01128,106740.0,106730.0,0.23916873]
[1762217505102,0.19865118,106740.0,106730.0,0.21455873]
[1762217505488,0.19865118,106740.0,106730.0,0.02817]
[1762217505912,0.18738873,106730.0,106720.0,0.16053155]
[1762217506170,0.52738873,106730.0,106720.0,0.16053155]
[1762217506379,0.52738873,106730.0,106720.0,0.17659155]
[1762217506790,0.52738873,106730.0,106720.0,0.36399784]
[1762217507203,0.52738873,106730.0,106720.0,0.17659155]
[1762217507405,0.52738873,106730.0,106720.0,0.17759155]
[1762217507693,0.52738873,106730.0,106720.0,0.36499784]
[1762217507890,0.52738873,106730.0,106720.0,0.36699784]
[1762217508273,0.52738873,106730.0,106720.0,0.17959155]
[1762217508484,0.52738873,106730.0,106720.0,0.36699784]
[1762217508676,0.34,106730.0,106720.0,0.36699784]
[1762217508832,0.52738873,106730.0,106720.0,0.36699784]
[1762217509447,0.19865118,106740.0,106730.0,0.18738873]
[1762217509651,3.0,106740.0,106730.0,0.24033873]
[1762217509850,3.34,106740.0,106730.0,0.05295]
[1762217510032,0.53865118,106740.0,106730.0,0.02834]
[1762217510437,3.53865118,106740.0,106730.0,0.02834]
[1762217510732,3.53865118,106740.0,106730.0,0.01228]
[1762217510929,4.09023666,106740.0,106730.0,0.01228]
[1762217511088,4.09023666,106740.0,106730.0,0.001]
[1762217511458,4.06587666,106740.0,106730.0,0.001]
[1762217512325,0.18738873,106730.0,106720.0,0.04636228]
[1762217512538,0.19608873,106730.0,106720.0,0.04636228]
[1762217512739,0.19608873,106730.0,106720.0,0.06242228]
[1762217512968,0.19608873,106730.0,106720.0,0.08703228]
[1762217513814,0.19608873,106730.0,106720.0,0.27743857]
[1762217514046,4.17723348,106730.0,106720.0,0.003]
[1762217517617,3.57677873,106730.0,106720.0,0.003]
[1762217521165,0.34,106730.0,106720.0,0.33191556]
[1762217521532,0.34,106730.0,106720.0,0.33291556]
[1762217521533,0.52738873,106730.0,106720.0,0.33291556]
[1762217521714,0.34,106730.0,106720.0,0.33291556]
[1762217521921,0.52738873,106730.0,106720.0,0.14550927]
[1762217522139,0.52738873,106730.0,106720.0,0.33291556]
[1762217522961,0.01128,106740.0,106730.0,0.18738873]
[1762217523165,3.53865118,106740.0,106730.0,0.24033873]
[1762217523436,3.35128,106740.0,106730.0,0.24033873]
[1762217523635,3.35128,106740.0,106730.0,0.21572873]
[1762217523852,3.53865118,106740.0,106730.0,0.24033873]
[1762217524059,3.35128,106740.0,106730.0,0.24033873]
[1762217524414,3.53865118,106740.0,106730.0,0.24033873]
[1762217524638,0.53865118,106740.0,106730.0,0.24033873]
[1762217525062,0.35128,106740.0,106730.0,0.24033873]
[1762217525487,0.19598362,106750.0,106740.0,0.18737118]
[1762217525762,0.53598362,106750.0,106740.0,0.02734]
[1762217525974,0.55231362,106750.0,106740.0,0.19865118]
[1762217526179,0.34863,106750.0,106740.0,0.30427045]
[1762217526307,0.52735362,106750.0,106740.0,0.32988045]
[1762217526883,0.34,106750.0,106740.0,0.32988045]
[1762217527331,0.52735362,106750.0,106740.0,0.32988045]
[1762217528741,0.52735362,106750.0,106740.0,0.05295]
[1762217528946,0.18737118,106740.0,106730.0,0.03718228]
[1762217529159,4.06587666,106740.0,106730.0,0.001]
[1762217529392,4.09023666,106740.0,106730.0,0.001]
[1762217529602,4.09023666,106740.0,106720.0,0.01228]
[1762217529603,0.18738873,106730.0,106720.0,0.01228]
[1762217529727,3.70698421,106730.0,106720.0,0.01228]
[1762217529927,3.70698421,106730.0,106720.0,0.02834]
[1762217530576,0.52740629,106720.0,106710.0,0.51199344]
[1762217530747,4.07899177,106720.0,106710.0,0.51199344]
[1762217530997,4.05463177,106720.0,106710.0,0.51199344]
[1762217531142,4.07899177,106720.0,106710.0,0.50071344]
[1762217532340,4.07899177,106720.0,106710.0,0.50671344]
[1762217532541,4.07899177,106720.0,106710.0,0.50771344]
[1762217532746,3.54373629,106720.0,106710.0,0.69513729]
[1762217532960,0.34,106720.0,106710.0,0.72980729]
[1762217533160,0.52740629,106720.0,106710.0,0.73080729]
[1762217533714,0.34,106720.0,106710.0,0.73280729]
[1762217533919,0.52740629,106720.0,106710.0,0.70819729]
[1762217534122,0.52740629,106720.0,106710.0,0.52077344]
[1762217534474,0.52740629,106720.0,106710.0,0.73228729]
[1762217534990,0.52740629,106720.0,106710.0,0.54486344]
[1762217535662,0.34,106720.0,106710.0,0.73228729]
[1762217535863,0.23297973,106740.0,106720.0,0.18740629]
[1762217535864,0.19865118,106740.0,106720.0,0.18740629]
[1762217536072,0.34,106730.0,106720.0,0.31695556]
[1762217536266,0.34,106730.0,106720.0,0.32926556]
[1762217536688,3.0,106730.0,106720.0,0.32926556]
[1762217536894,3.0,106730.0,106720.0,0.33026556]
[1762217537930,0.22561148,106740.0,106730.0,0.18738873]
[1762217538129,0.22461148,106740.0,106730.0,0.18738873]
[1762217538392,0.19598362,106750.0,106740.0,0.18737118]
[1762217538632,3.19598362,106750.0,106740.0,0.18737118]
[1762217538777,3.19598362,106750.0,106740.0,0.20327118]
[1762217538983,3.19598362,106750.0,106740.0,0.0157]
[1762217539229,0.18737118,106740.0,106730.0,0.02509]
[1762217539362,0.20343118,106740.0,106730.0,0.01873887]
[1762217539560,0.18738873,106730.0,106720.0,0.35991815]
[1762217539997,0.18738873,106730.0,106720.0,0.37581815]
[1762217540198,0.18737118,106740.0,106720.0,0.37581815]
[1762217540421,0.18737118,106740.0,106730.0,0.0159]
[1762217541051,0.18738873,106730.0,106720.0,0.16314155]
[1762217541278,0.18738873,106730.0,106720.0,0.35054784]
[1762217541480,0.18738873,106730.0,106720.0,0.36744784]
[1762217541661,0.18738873,106730.0,106720.0,0.0573]
[1762217541877,0.18738873,106730.0,106720.0,0.33426556]
[1762217542073,3.69826666,106740.0,106730.0,0.001]
[1762217542218,0.18738873,106730.0,106720.0,0.33426556]
[1762217542419,0.18738873,106730.0,106720.0,0.33626556]
[1762217543269,0.18738873,106730.0,106720.0,0.14885927]
[1762217543644,0.18738873,106730.0,106720.0,0.14685927]
[1762217544033,4.03826666,106740.0,106730.0,0.001]
[1762217544242,3.0,106730.0,106720.0,0.33426556]
[1762217544459,3.18738873,106730.0,106720.0,0.33426556]
[1762217544665,0.18738873,106730.0,106720.0,0.33626556]
[1762217544876,0.18738873,106730.0,106720.0,0.33026556]
[1762217545502,3.0,106730.0,106720.0,0.33026556]
[1762217545704,3.18738873,106730.0,106720.0,0.33226556]
[1762217545986,3.0,106730.0,106720.0,0.33626556]
[1762217547515,3.18738873,106730.0,106720.0,0.33626556]
[1762217547720,0.18738873,106730.0,106720.0,0.0593]
[1762217547933,3.59358469,106730.0,106720.0,0.01831]
[1762217548344,3.95642469,106730.0,106720.0,0.006]
[1762217549864,3.95642469,106730.0,106720.0,0.004]
[1762217550274,3.18740629,106720.0,106710.0,0.51218344]
[1762217550537,3.56745225,106720.0,106710.0,0.53621344]
[1762217550691,3.58374225,106720.0,106710.0,0.51218344]
[1762217550911,3.60658225,106720.0,106710.0,0.50071344]
[1762217551351,3.60658225,106720.0,106710.0,0.50471344]
[1762217551551,3.60658225,106720.0,106710.0,0.50671344]
[1762217551773,3.58374225,106720.0,106710.0,0.50671344]
[1762217552196,3.94658225,106720.0,106710.0,0.50671344]
[1762217552731,3.92374225,106720.0,106710.0,0.50671344]
[1762217552939,3.92749225,106720.0,106710.0,0.50671344]
[1762217554735,3.92749225,106720.0,106710.0,0.50071344]
[1762217554975,3.92749225,106720.0,106710.0,0.50271344]
[1762217555175,3.92749225,106720.0,106710.0,0.50371344]
[1762217555813,3.92749225,106720.0,106710.0,0.51518344]
[1762217556463,3.95033225,106720.0,106710.0,0.50371344]
[1762217556741,3.92749225,106720.0,106710.0,0.50371344]
[1762217557156,3.53115629,106720.0,106710.0,0.53098344]
[1762217557362,3.92749225,106720.0,106710.0,0.51518344]
[1762217557490,3.92749225,106720.0,106710.0,0.50371344]
[1762217558508,0.53115629,106720.0,106710.0,0.71840729]
[1762217558839,3.18738873,106730.0,106710.0,0.74343729]
[1762217559010,3.0,106720.0,106710.0,0.74343729]
[1762217559158,0.18740629,106720.0,106710.0,0.74343729]
[1762217559882,0.91752469,106730.0,106720.0,0.18740629]
[1762217560085,3.91752469,106730.0,106720.0,0.18740629]
[1762217560296,3.91752469,106730.0,106720.0,0.19887629]
[1762217560492,3.91752469,106730.0,106720.0,0.21467629]
[1762217561511,3.91752469,106730.0,106720.0,0.02727]
[1762217561730,3.93381469,106730.0,106720.0,0.01147]
[1762217562182,3.93381469,106730.0,106720.0,0.19887629]
[1762217562796,3.93381469,106730.0,106720.0,0.01147]
[1762217563224,0.18740629,106720.0,106710.0,0.72463089]
[1762217563415,3.58749225,106720.0,106710.0,0.51318344]
[1762217564017,3.19115629,106720.0,106710.0,0.74043729]
[1762217564793,3.20722629,106720.0,106710.0,0.51318344]
[1762217564993,3.20722629,106720.0,106710.0,0.50171344]
[1762217564994,3.23059629,106720.0,106710.0,0.50171344]
[1762217565231,3.20722629,106720.0,106710.0,0.50171344]
[1762217565415,3.58727225,106720.0,106710.0,0.51504344]
[1762217565622,3.58727225,106720.0,106710.0,0.51604344]
[1762217566706,3.58727225,106720.0,106710.0,0.50371344]
[1762217566707,3.61064225,106720.0,106710.0,0.50371344]
[1762217569187,3.20722629,106720.0,106710.0,0.70246729]
[1762217569744,0.94089469,106730.0,106710.0,0.74294729]
[1762217569948,0.18740629,106720.0,106710.0,0.74294729]
[1762217570147,3.20722629,106720.0,106710.0,0.51504344]
[1762217570343,3.89965745,106720.0,106710.0,0.50371344]
[1762217571065,3.23059629,106720.0,106710.0,0.50371344]
[1762217571220,3.89965745,106720.0,106710.0,0.50371344]
[1762217571429,3.89965745,106720.0,106710.0,0.50171344]
[1762217572484,3.89965745,106720.0,106710.0,0.50371344]
[1762217572981,3.89965745,106720.0,106710.0,0.50071344]
[1762217573358,3.90065745,106720.0,106710.0,0.50071344]
[1762217573880,3.89965745,106720.0,106710.0,0.50071344]
[1762217575899,4.32876409,106720.0,106710.0,0.50071344]
[1762217576261,3.99423351,106720.0,106710.0,0.50071344]
[1762217576882,3.89965745,106720.0,106710.0,0.50071344]
[1762217581812,0.00375,106720.0,106710.0,0.71579729]
[1762217582035,0.34,106720.0,106710.0,0.74094729]
[1762217582667,0.34,106720.0,106710.0,0.55352344]
[1762217582668,0.52193687,106720.0,106710.0,0.55352344]
[1762217583029,0.52568687,106720.0,106710.0,0.52937344]
[1762217583233,0.52568687,106720.0,106710.0,0.74094729]
[1762217583453,0.52568687,106720.0,106710.0,0.55452344]
[1762217583600,0.87628745,106720.0,106710.0,0.51604344]
[1762217583815,0.86021745,106720.0,106710.0,0.53237344]
[1762217584075,0.52568687,106720.0,106710.0,0.71779729]
[1762217584273,3.89965745,106720.0,106710.0,0.50171344]
[1762217584525,4.23965745,106720.0,106710.0,0.50471344]
[1762217584819,4.23965745,106720.0,106710.0,0.50671344]
[1762217585024,4.23965745,106720.0,106710.0,0.50471344]
[1762217585228,4.23965745,106720.0,106710.0,0.50071344]
[1762217585429,4.23965745,106720.0,106710.0,0.50171344]
[1762217586410,4.66876409,106720.0,106710.0,0.50371344]
[1762217587348,4.66976409,106720.0,106710.0,0.50371344]
[1762217587782,5.69666409,106720.0,106710.0,0.50371344]
[1762217587973,5.69666409,106720.0,106710.0,0.50171344]
[1762217588174,5.69666409,106720.0,106710.0,0.50071344]
[1762217588395,3.52842385,106710.0,106700.0,1e-08]
[1762217588600,4.04291929,106710.0,106700.0,0.00014467]
[1762217588807,4.04291929,106710.0,106700.0,0.00146547]
[1762217589670,3.94734323,106710.0,106700.0,0.00146547]
[1762217590951,3.94834323,106710.0,106700.0,0.00146547]
[1762217593486,3.94734323,106710.0,106700.0,0.00146547]
[1762217599387,3.95646323,106710.0,106700.0,0.00146547]
[1762217600064,3.55212385,106710.0,106700.0,0.00146547]
[1762217600268,3.93260323,106710.0,106700.0,0.00146547]
[1762217600468,3.93260323,106710.0,106700.0,0.18890689]
[1762217600798,3.55212385,106710.0,106700.0,0.18890689]
[1762217601054,3.55212385,106710.0,106700.0,0.00146547]
[1762217601277,3.93260323,106710.0,106700.0,0.00146547]
[1762217601408,3.95646323,106710.0,106700.0,0.00146547]
[1762217601854,4.05103929,106710.0,106700.0,0.00146547]
[1762217602322,4.05203929,106710.0,106700.0,0.00146547]
[1762217604068,3.95746323,106710.0,106700.0,0.00146547]
[1762217606580,4.0883394,106710.0,106700.0,0.00146547]
[1762217610526,4.24640219,106710.0,106700.0,0.00146547]
[1762217610742,4.24540219,106710.0,106700.0,0.00146547]
[1762217610948,3.91069302,106710.0,106700.0,0.00146547]
[1762217612519,4.08724815,106710.0,106700.0,0.00146547]
[1762217612990,3.57598385,106710.0,106700.0,0.00146547]
[1762217613410,4.08824815,106710.0,106700.0,0.00146547]
[1762217614385,4.08724815,106710.0,106700.0,0.00146547]
[1762217621300,3.57598385,106710.0,106700.0,0.00146547]
[1762217621514,3.55212385,106710.0,106700.0,0.21669689]
[1762217621713,3.53605385,106710.0,106700.0,0.23991689]
[1762217621924,0.52742385,106710.0,106700.0,0.36665844]
[1762217622123,0.34,106710.0,106700.0,0.36665844]
[1762217622527,3.50375,106720.0,106710.0,0.18742385]
[1762217622664,3.00375,106720.0,106710.0,0.23843385]
[1762217623231,3.00375,106720.0,106710.0,0.23943385]
[1762217623689,3.19115629,106720.0,106710.0,0.23843385]
[1762217624169,3.00375,106720.0,106710.0,0.23843385]
[1762217625182,3.00375,106720.0,106710.0,0.23943385]
[1762217625408,0.00375,106720.0,106710.0,0.23943385]
[1762217625625,3.0,106730.0,106720.0,0.18740629]
[1762217625861,0.51009,106740.0,106730.0,0.18738873]
[1762217625862,3.0,106740.0,106730.0,0.18738873]
[1762217626078,3.0,106740.0,106730.0,0.22715873]
[1762217626531,3.34,106740.0,106730.0,0.22715873]
[1762217626783,0.19621525,106750.0,106740.0,0.18737118]
[1762217626784,3.19621525,106750.0,106740.0,0.18737118]
[1762217627027,0.18737118,106740.0,106730.0,0.03977]
[1762217627243,0.18737118,106740.0,106730.0,0.22715873]
[1762217627451,0.18737118,106740.0,106730.0,0.23015873]
[1762217627655,3.0,106740.0,106730.0,0.23015873]
[1762217628086,4.809e-05,106740.0,106730.0,0.23015873]
[1762217628524,4.809e-05,106740.0,106730.0,0.26534101]
[1762217629288,4.809e-05,106740.0,106730.0,0.26634101]
[1762217629486,4.809e-05,106740.0,106730.0,0.26434101]
[1762217629724,0.18741927,106740.0,106730.0,0.26334101]
[1762217629923,0.18741927,106740.0,106730.0,0.27234101]
[1762217630104,0.18741927,106740.0,106730.0,0.26934101]
[1762217630303,4.809e-05,106740.0,106730.0,0.26334101]
[1762217630625,4.809e-05,106740.0,106730.0,0.26934101]
[1762217637812,0.18741927,106740.0,106730.0,0.04477]
[1762217638011,0.18741927,106740.0,106730.0,0.23215873]
[1762217638980,0.18741927,106740.0,106730.0,0.04477]
[1762217639187,0.18741927,106740.0,106730.0,0.23215873]
[1762217639332,0.18741927,106740.0,106730.0,0.04477]
[1762217639734,0.18741927,106740.0,106730.0,0.23215873]
[1762217640098,0.18741927,106740.0,106730.0,0.04477]
[1762217640308,0.69868357,106740.0,106730.0,0.04477]
[1762217640512,3.71470357,106740.0,106730.0,0.006]
[1762217640686,3.00004809,106740.0,106730.0,0.23215873]
[1762217640916,4.809e-05,106740.0,106730.0,0.23215873]
[1762217641251,4.809e-05,106740.0,106730.0,0.23115873]
[1762217641375,4.809e-05,106740.0,106730.0,0.22715873]
[1762217641776,3.0,106750.0,106740.0,0.20301118]
[1762217642001,3.0,106750.0,106740.0,0.31670045]
[1762217642400,3.0,106750.0,106740.0,0.31570045]
[1762217642602,2.9999038,106750.0,106740.0,0.31570045]
[1762217642897,2.9999038,106750.0,106740.0,0.31670045]
[1762217643926,2.9999038,106750.0,106740.0,0.31570045]
[1762217644167,2.9999038,106750.0,106740.0,0.31670045]
[1762217644366,2.9999038,106750.0,106740.0,0.35388273]
[1762217644572,0.00928643,106760.0,106750.0,0.18735362]
[1762217644790,0.19662251,106760.0,106750.0,0.22612362]
[1762217644996,0.18733608,106760.0,106750.0,0.22612362]
[1762217645394,0.19670878,106760.0,106750.0,0.22612362]
[1762217646134,0.19670878,106760.0,106750.0,0.22712362]
[1762217646542,0.0093727,106760.0,106750.0,0.22712362]
[1762217646843,0.24544397,106780.0,106760.0,0.18733608]
[1762217646844,0.70872123,106780.0,106760.0,0.18733608]
[1762217647019,0.18731962,106770.0,106760.0,0.05036]
[1762217647264,0.18731853,106770.0,106760.0,0.19892608]
[1762217647391,0.18731853,106770.0,106760.0,0.02723]
[1762217647793,3.81378397,106770.0,106760.0,0.01159]
[1762217648034,3.18733608,106760.0,106750.0,0.21048362]
[1762217648257,3.52735362,106750.0,106730.0,0.02313]
[1762217648473,0.18738873,106730.0,106720.0,0.22312433]
[1762217648647,0.18738873,106730.0,106720.0,0.31268556]
[1762217648804,0.18738873,106730.0,106720.0,0.36450784]
[1762217649557,0.5112643,106740.0,106720.0,0.32832556]
[1762217649771,1.04235792,106750.0,106730.0,0.20302873]
[1762217649968,0.18737118,106740.0,106730.0,0.22615873]
[1762217650674,3.0,106740.0,106730.0,0.22615873]
[1762217650896,3.18737118,106740.0,106730.0,0.22715873]
[1762217651146,0.18737118,106740.0,106730.0,0.22715873]
[1762217651355,0.18737118,106740.0,106730.0,0.23515873]
[1762217651589,3.0,106740.0,106730.0,0.23515873]
[1762217652012,3.0,106740.0,106730.0,0.23215873]
[1762217652231,3.0,106740.0,106730.0,0.22715873]
[1762217652442,3.0,106740.0,106730.0,0.22815873]
[1762217653422,0.34,106750.0,106740.0,0.18737118]
[1762217653564,0.18735362,106750.0,106740.0,0.22614118]
[1762217653764,0.69883191,106760.0,106740.0,0.22614118]
[1762217653970,0.52756761,106760.0,106750.0,0.23771362]
[1762217654844,0.54444761,106760.0,106750.0,0.01159]
[1762217655058,0.18735362,106750.0,106740.0,0.02358]